Cogmind - Beta 15 @@@ ROGUE MODE // 2025.07.24 @ 03:53:49 Player: shapeshifter Result: Destroyed by Y-54 Guardian with Gatling Laser Performance ------------- Evolutions (0) 0 Regions Visited (3) 600 Robots Destroyed (14) 70 Value Destroyed (484) 484 Prototype IDs (0) 0 Alien Tech Used (0) 0 Bonus (0) 0 TOTAL SCORE: 1154 Bonus ------- None Cogmind --------- Core Integrity 0/250 Matter 295/300 Energy 150/150 System Corruption 7% Temperature Warm (157) Movement Core (500) Ox9 Location -7/Recycling Parts ------- > --- POWER (1) -------- Micro Nuclear Core > --- PROPULSION (2) --- (None) > --- UTILITY (2) ------ Large Storage Unit > --- WEAPON (2) ------- Makeshift Laser > --- INVENTORY (15) --- Wheel Compact Wheel Small Storage Unit Reactive Plating Light Assault Rifle Concussive RPG (1) Remote Datajack Remote Datajack Peak State ------------ > --- POWER ------------ Ion Engine > --- PROPULSION ------- Light Treads Spiked Treads > --- UTILITY ---------- Large Storage Unit Improved Sensor Array > --- WEAPON ----------- Autobeam Makeshift Laser > --- INVENTORY -------- Light Treads Wheel Compact Wheel Small Storage Unit Reactive Plating Small Laser Light Assault Rifle Concussive RPG [Rating: 15] Favorites ----------- Power Ion Engine Engine Ion Engine Power Core Micro Nuclear Core Propulsion Light Treads Treads Light Treads Utility Small Storage Unit Device Seismic Detector Storage Small Storage Unit Weapon Makeshift Laser Energy Gun Makeshift Laser Ballistic Gun Assault Rifle Build | -11 -10 -10 -7 ------- Run | Yrd Mat Sub Rec Slots Evolved . | . . . . Power . | . . . . Propulsion . | . . . . Utility . | . . . . Weapon . | . . . . Parts Attached 18 | 7 . 5 6 Power 3 | 1 . 1 1 Engine 2 | 1 . 1 . Core 1 | . . . 1 Reactor . | . . . . Propulsion 5 | 2 . 1 2 Treads 5 | 2 . 1 2 Leg . | . . . . Wheel . | . . . . Hover . | . . . . Flight . | . . . . Utility 5 | 2 . 1 2 Device 3 | 1 . 1 1 Storage 2 | 1 . . 1 Processor . | . . . . Hackware . | . . . . Protection . | . . . . Artifact . | . . . . Weapon 5 | 2 . 2 1 Energy Gun 3 | . . 2 1 Energy Cannon . | . . . . Ballistic Gun 2 | 2 . . . Ballistic Cannon . | . . . . Launcher . | . . . . Special Weapon . | . . . . Impact Weapon . | . . . . Slashing Weapon . | . . . . Piercing Weapon . | . . . . Special Melee Weapon . | . . . . Unidentified Prototypes . | . . . . Parts Lost 10 | . . 3 7 Power 2 | . . 1 1 Propulsion 3 | . . . 3 Utility 2 | . . 1 1 Weapon 3 | . . 1 2 Highest Loss Streak 4 | . . 3 4 To Critical Strikes . | . . . . Average Backups 6 | 3 4 5 7 Power . | . 1 1 . Propulsion 2 | 1 2 2 2 Utility . | . . . 1 Weapon 1 | 1 1 1 1 Tool/Special . | . . . . Unused Backups 6 | . . . 6 Power . | . . . . Propulsion 2 | . . . 2 Utility 1 | . . . 1 Weapon . | . . . . Tool/Special 3 | . . . 3 Average Slot Usage (%) 91 | . 100 97 86 Engine 11 | . 14 13 10 Treads 27 | . 28 28 27 Device 10 | . 14 13 8 Storage 14 | . 14 14 14 Energy Gun 16 | . . 9 24 Ballistic Gun 8 | . 28 18 . Peak Build Rating 15 | 7 7 13 15 Average Rating 10 | 4 7 9 12 On Entrance 6 | . 7 7 13 Naked Turns . | . . . . Heaviest Build 34 | 14 14 19 34 Greatest Support 40 | 40 40 40 40 Greatest Overweight (x) 10 | 1 . . 10 Average Overweight (x) . | . . . . Largest Inventory Capacity 15 | 8 8 8 15 Average Capacity 10 | 7 8 8 13 Most Carried 11 | 6 4 8 11 Average Carried 6 | 4 4 5 7 Final Capacity 15 | 8 8 8 15 Final Carried 8 | 4 4 5 8 Class Distribution -------------------- 100% | Mutant Dominant Class ---------------- Mutant | -10/Materials Mutant | -10/Subcaves Mutant | -7/Recycling Resources | -11 -10 -10 -7 ----------- Run | Yrd Mat Sub Rec Matter Collected 488 | 215 . 153 120 Remotely . | . . . . Salvage Created 626 | 25 . 222 379 Parts 28 | 3 . 13 12 Haulers Intercepted . | . . . . Recyclers Shooed 2 | . . . 2 Parts Field Recycled . | . . . . Retrieved Matter . | . . . . Parts Self-Destructed 18 | . . 18 . Prevented . | . . . . Kills | -11 -10 -10 -7 ------- Run | Yrd Mat Sub Rec Combat Hostiles Destroyed 10 | . . 5 5 Guns 10 | . . 5 5 Classes Destroyed 9 | 1 . 4 4 Tunneler 1 | 1 . . . Recycler 1 | . . . 1 Turret 2 | . . 2 . Swarmer 2 | . . 2 . Grunt 2 | . . 2 . Brawler 2 | . . . 2 Sentry 1 | . . . 1 Programmer 2 | . . . 2 Subdweller 1 | . . 1 . Best Kill Streak 4 | 1 . 4 2 Combat Bots Only 2 | . . 2 2 Max Kills in Single Turn 1 | 1 . 1 1 Gunslinging . | . . . . Exploded . | . . . . Melee . | . . . . Uniques/NPCs Destroyed . | . . . . Combat | -11 -10 -10 -7 -------- Run | Yrd Mat Sub Rec Hostile Shots Fired 176 | . . 104 72 Missed 60 | . . 38 22 Hits 116 | . . 66 50 Melee 3 | . . . 3 Projectile 113 | . . 66 47 Critical Strikes 2 | . . 1 1 Part Disruptions 1 | . . . 1 Damage Taken 1242 | . . 649 593 Core 250 | . . 101 149 Absorbed by Shields . | . . . . Core Remaining (%) 100 | 100 . . . Volleys Fired 43 | 7 . 17 19 Largest 2 | 2 . 2 2 Hottest 90 | 40 . 70 90 Shots Fired 82 | 14 . 33 35 Gun 82 | 14 . 33 35 Cannon . | . . . . Launcher . | . . . . Special . | . . . . Kinetic 32 | 14 . 18 . Thermal 50 | . . 15 35 Explosive . | . . . . Electromagnetic . | . . . . Robot Hit Streak 13 | 6 . 13 7 Robot Miss Streak 7 | 1 . 2 7 Penetration Max . | . . . . Secondary Targets . | . . . . Autonomous 13 | . . . 13 Shots Hit Robots 58 | 11 . 23 24 Core Hits 32 | 3 . 13 16 Critical Kills . | . . . . Critical Parts Destroyed . | . . . . Critical Strikes 4 | . . 2 2 Burn 4 | . . 2 2 Melee Attacks . | . . . . Impact . | . . . . Slashing . | . . . . Piercing . | . . . . Sneak Attacks . | . . . . Combat Hostiles . | . . . . Follow-up Attacks . | . . . . Damage Inflicted 853 | 120 . 328 405 Guns 852 | 120 . 327 405 Cannons . | . . . . Explosions . | . . . . Melee . | . . . . Ramming 1 | . . 1 . Kinetic 277 | 120 . 157 . Thermal 575 | . . 170 405 Explosive . | . . . . Electromagnetic . | . . . . Impact . | . . . . Slashing . | . . . . Piercing . | . . . . Highest Corruption 7 | . . . 7 Average Corruption 5 | . . . 5 Corruption Purged . | . . . . Corruption Blocked . | . . . . Effects 5 | . . . 5 Message Errors 2 | . . . 2 Heat Flow Errors 1 | . . . 1 Parts Rejected 1 | . . . 1 Data Loss (major) 1 | . . . 1 Overload Shots . | . . . . Overflow Damage . | . . . . Projectiles . | . . . . Explosions . | . . . . Melee . | . . . . Knockbacks . | . . . . Impact . | . . . . Kinetic . | . . . . Secondary . | . . . . Self-Inflicted Damage . | . . . . Shots . | . . . . Rammed 1 | . . 1 . Targets Rammed 1 | . . 1 . Kicked . | . . . . Crushed . | . . . . Highest Temperature 613 | . . 7 613 Average Temperature 218 | . . 4 231 Received Heat Transfer 354 | . . 276 78 Effects 9 | . . . 9 Shutdowns 2 | . . . 2 Energy Bleed 2 | . . . 2 Interference 2 | . . . 2 Matter Decay 1 | . . . 1 Short Circuit 1 | . . . 1 Damage (minor) 1 | . . . 1 Siege Activations . | . . . . Martial Activations . | . . . . Shielding Activations . | . . . . Robots Disrupted . | . . . . Combat Hostiles . | . . . . Robots Corrupted . | . . . . Combat Hostiles . | . . . . Parts Fried . | . . . . Impact Corruptions . | . . . . Robots Melted . | . . . . Combat Hostiles . | . . . . Parts Melted 2 | . . . 2 Heat Transferred 1685 | . . 518 1167 Parts Sabotaged . | . . . . Parts Stolen . | . . . . Parts Stripped . | . . . . Power Chain Reactions . | . . . . Alert | -11 -10 -10 -7 ------- Run | Yrd Mat Sub Rec Maximum Alert Level . | . . . . Low Security (%) 100 | 100 100 . 100 Level 1 . | . . . . Level 2 . | . . . . Level 3 . | . . . . Level 4 . | . . . . Level 5 . | . . . . High Security . | . . . . Max Security . | . . . . Peak Influence 35 | 5 3 . 35 Initial 15 | . 3 . 15 Average 4 | . . . 5 Influence Increases 245 | 5 . 130 110 Destroy 0b10 Robot/C 220 | . . 120 100 Destroy 0b10 Robot/NC 15 | 5 . . 10 Destroy Leader 10 | . . 10 . Influence Decreases 245 | . 5 98 142 Entered New Map 19 | . 2 . 17 Time Decay 166 | . 3 68 95 Lost Part 60 | . . 30 30 Squads Dispatched 1 | . 1 . . Investigation . | . . . . Extermination . | . . . . Reinforcement 1 | . 1 . . Assault . | . . . . Garrison . | . . . . Intercept . | . . . . Searches Triggered . | . . . . Construction Impeded . | . . . . Haulers Reinforced . | . . . . Active Scanning Responses . | . . . . Cargo Convoy Interrupts . | . . . . Stealth | -11 -10 -10 -7 --------- Run | Yrd Mat Sub Rec Distress Signals . | . . . . Communications Jammed . | . . . . Distress Signals . | . . . . Times Spotted 17 | . . 10 7 Peak Tracking Total 6 | . . 6 2 Tactical Retreats . | . . . . Traps | -11 -10 -10 -7 ------- Run | Yrd Mat Sub Rec Traps Triggered 1 | . . 1 . Indirectly . | . . . . Trap Hack Attempts . | . . . . Triggered . | . . . . Disarmed . | . . . . Reprogrammed . | . . . . Reused . | . . . . Traps Extracted . | . . . . Installed . | . . . . Triggered . | . . . . Machines | -11 -10 -10 -7 ---------- Run | Yrd Mat Sub Rec Machines Disabled 2 | . . 2 . Max in Single Turn 1 | . . 1 . Machines Repaired . | . . . . Machines Dismantled . | . . . . Machines Sabotaged . | . . . . Overloaded Fab Kills . | . . . . Hacking | -11 -10 -10 -7 --------- Run | Yrd Mat Sub Rec Machines Accessed 1 | . . . 1 Terminals 1 | . . . 1 Fabricators . | . . . . Repair Stations . | . . . . Recycling Units . | . . . . Scanalyzers . | . . . . Garrison Access . | . . . . Total Hacks 1 | . . . 1 Successful . | . . . . Failed 1 | . . . 1 Catastrophic . | . . . . Database Lockouts . | . . . . Manual 1 | . . . 1 Terminals 1 | . . . 1 Fabricators . | . . . . Repair Stations . | . . . . Recycling Units . | . . . . Scanalyzers . | . . . . Garrison Access . | . . . . Terminal Hacks . | . . . . Fabricator Hacks . | . . . . Repair Station Hacks . | . . . . Recycling Unit Hacks . | . . . . Scanalyzer . | . . . . Garrison Access Hacks . | . . . . Unauthorized Hacks . | . . . . Terminals . | . . . . Fabricators . | . . . . Repair Stations . | . . . . Recycling Units . | . . . . Scanalyzers . | . . . . Garrison Access . | . . . . Data Cores Recovered . | . . . . Used . | . . . . Hacking Detections . | . . . . Full Trace Events . | . . . . Feedback Events . | . . . . Feedback Blocked . | . . . . Robot Schematics Acquired . | . . . . Robots Built . | . . . . Authchips . | . . . . Time . | . . . . Total Robot Build Rating . | . . . . Part Schematics Acquired . | . . . . Parts Built . | . . . . Authchips . | . . . . Time . | . . . . Total Part Build Rating . | . . . . Parts Repaired . | . . . . Time . | . . . . Parts Recycled . | . . . . Recycled Matter . | . . . . Retrieved Matter . | . . . . Retrieved Components . | . . . . Parts Scanalyzed . | . . . . Part Schematics Acquired . | . . . . Parts Damaged . | . . . . Bothacking | -11 -10 -10 -7 ------------ Run | Yrd Mat Sub Rec Used RIF Installer . | . . . . Robots Hacked . | . . . . Non-combat . | . . . . Combat . | . . . . Robot Hacks Applied . | . . . . Relay Couplers Released . | . . . . Fabnet Peak Effective % . | . . . . Robots Rewired . | . . . . Allies Hacked . | . . . . Hacks Repelled . | . . . . Allies | -11 -10 -10 -7 -------- Run | Yrd Mat Sub Rec Total Allies . | . . . . Largest Group . | . . . . Highest-Rated Group . | . . . . Highest-Rated Ally . | . . . . Total Orders . | . . . . Ally Attacks . | . . . . Total Damage . | . . . . Kills . | . . . . Allies Corrupted . | . . . . Allies Melted . | . . . . Intel | -11 -10 -10 -7 ------- Run | Yrd Mat Sub Rec Active Infowar (turns) 798 | 12 66 382 338 Optics 171 | . . 5 166 Sensors 172 | . . . 172 Seismic 455 | 12 66 377 . Robot Analysis Total . | . . . . Derelict Logs Recovered 2 | . . 2 . Drone Launches . | . . . . Drone Recoveries . | . . . . Exploration | -11 -10 -10 -7 ------------- Run | Yrd Mat Sub Rec Turns Passed 1206 | 138 66 417 585 Spaces Moved 610 | 77 28 216 289 Core 31 | 22 . . 9 Treads 579 | 55 28 216 280 Legs . | . . . . Wheels . | . . . . Hover . | . . . . Flight . | . . . . Fastest Speed 50 | 50 160 160 160 Average Speed 163 | 129 160 160 175 Slowest Speed 550 | 160 160 160 550 Overloaded Moves . | . . . . Propulsion Burnouts . | . . . . Robots Hopped . | . . . . Potential Cave-ins . | . . . . Cave-ins Triggered . | . . . . Exploration Rate (%) 20 | 4 9 19 50 Regions Visited 3 Branch Regions 2 Pre-discovered Areas . | . . . . Known Exits Taken 1 | . . 1 . Unknown Exits Taken 2 | 1 1 . . Scrap Searched . | . . . . Spaces Dug . | . . . . Terrain Destroyed . | . . . . Melee . | . . . . Projectile . | . . . . AOE . | . . . . Terrain Rammed . | . . . . Walls Destroyed . | . . . . Machines Disabled . | . . . . Actions | -11 -10 -10 -7 --------- Run | Yrd Mat Sub Rec Total 749 | 103 49 251 346 Wait 54 | 3 22 9 20 Move 607 | 76 27 215 289 Hop . | . . . . Pick Up 23 | 10 . 4 9 Fast Attach 1 | 1 . . . Attach 14 | 6 . 3 5 Detach . | . . . . Swap 4 | . . 2 2 Drop 2 | . . . 2 Fire 43 | 7 . 17 19 Melee . | . . . . Ram . | . . . . Kick . | . . . . Crush 1 | . . 1 . Escape Stasis . | . . . . Rewire . | . . . . Trap . | . . . . Miscellaneous . | . . . . Route ------- -11/Scrapyard -10/Materials -10/Subcaves (discovered 3 exits: [*Mat] / *Rec / [Scr]) -7/Recycling History --------- Turn | Location | Event 3 | -11/Scrapyard | Discovered new exit (range 15) 139 | -11/Scrapyard | Entered Materials 140 | -10/Materials | Met a group of wandering Federalists 197 | -10/Materials | Discovered new exit (range 8) 205 | -10/Materials | Entered Subcaves 205 | -10/Subcaves | Accompanied by 2 allies 206 | -10/Subcaves | Continued accompanying wandering Federalists (6) 238 | -10/Subcaves | Learned location of 1 exit from Materials 273 | -10/Subcaves | Identified exit to Recycling 300 | -10/Subcaves | Build established: Mutant 306 | -10/Subcaves | Discovered new exit (range 14) 622 | -10/Subcaves | Entered Recycling 623 | -7/Recycling | Met a Zionite searching for Scraptown 627 | -7/Recycling | Lost 3 parts (1p1u1w) 1042 | -7/Recycling | Core integrity fell below 50% 1088 | -7/Recycling | Lost 4 parts (1p1n2w) 1203 | -7/Recycling | Core integrity fell below 20% 1207 | -7/Recycling | Destroyed by Y-54 Guardian with Gatling Laser Last Messages --------------- 01051_ B-48 Gladiator destroyed. 01057_ Sml. Laser destroyed. 01057_ Destroyed Shock Rifle. 01059_ P-60 Hacker suffers critical hit (Burn). 01059_ Gravmag System melted. 01059_ P-60 Hacker destroyed. 01063_ R-06 Scavenger collects Rnf. Deuterium Engine. 01064_ Dropped Broken Lgt. Treads. 01064_ Acquired 20 matter. 01067_ R-06 Scavenger collects Lgt. Treads. 01074_ R-06 Scavenger collects Imp. Heat Sink. 01117_ System corrupted: Substantial component data lost. 01160_ Acquired Mic. Nuclear Core. 01191_ System corrupted: Lgt. Treads rejected. 01192_ R-06 Scavenger collects Lgt. Treads. 01202_ Y-54 Guardian springs to life. 01206_ System corrupted: Heat flow error (+156). 01206_ Lgt. Treads destroyed. Map ----- +----------------------------------------------------+ | #??????# """ # # ##??????????????? | | #??????# # # #???????????????? | | #??????########## # #???????????????? | | #???????????????# # #???????????????? | | #???????????????# # #???????????????? | | #???????????????# # #???????????????? | | #???????????????# # #???????????????? | | #?############### ##### #???????????????? | | +###+#??# ## #????##???????????????? | | #### ## ##########????????????? | | + ! % ## ## #????????????? | | ####! ! =# # """ #????????????? | | #??# # # """ #????????????? | | ##?# + + """ #????????????? | | # ### #r # #????????????? | | # + # # """ #????????????? | | # ### ## ## """ #????????????? | | #####?# % ## ## """ #????????????? | | #?????# ## ## #????????????? | | ###?????# % ## ## """ #????????????? | | ????????############### ## """ #????????????? | | ??????????????????????# ## """ #????????????? | | ??????????????????#=??#u ## #????????????? | | ?????????????#"T"##= =# ## """ #????????????? | | ???????????+ ## """ #????????????? | | ???????????# rr @## """ #????????????? | | ???????????# # #????????????? | | ???????????# # """ #????????????? | | ???????????+ # """ #????????????? | | ???????????# # """ #????????????? | | ???????????# Y Y # #????????????? | | ???????????? #### ## ### ###########????????????? | | ????????????????##?##??# #??????????????????????? | | ???????????????????????# ???????????????????????? | | ???????????????????????# ???????????????????????? | | ???????????????????????# ???????????????????????? | | ???????????????????????# ???????????????????????? | | ???????????????????????# ???????????????????????? | | ???????????????????????? ???????????????????????? | | ????????????????????????????????????????????????? | | ????????????????????????????????????????????????? | | ????????????????????????????????????????????????? | | ????????????????????????????????????????????????? | | ????????????????????????????????????????????????? | | ????????????????????????????????????????????????? | | ????????????????????????????????????????????????? | | ????????????????????????????????????????????????? | | ????????????????????????????????????????????????? | | ????????????????????????????????????????????????? | | ????????????????????????????????????????????????? | +----------------------------------------------------+ Best States ------------- Heat Dissipation 25 Energy Generation 15 Energy Capacity 250 Matter Stores 300 Matter Capacity 300 Sight Range 21 Robot Scan Range 15 Terrain Scan Density 10 Evasion (%) 50 Recoil Reduction 2 Item Schematics ----------------- None Robot Schematics ------------------ None Fabricated ------------ Nothing Repaired ---------- Nothing Alien Tech Used ----------------- None Achievements -------------- None Challenges ------------ None Game ------ Seed MappingBladeScreen Manual? 0 Play Time 00:10:34 Cumulative 44.2 hours Start 2025.07.24 @ 03:45:32 End 2025.07.24 @ 03:53:49 Sessions 1 Manual Loads 0 Difficulty Rogue Special Mode None Game No. 109 Rogue 109 Adventurer 0 Explorer 0 Win Type - Total 0 Types 0/0/0/0/0/0/0/0/0/0 Lore% 38 Gallery% 37 Achievement% 30 Wizard Run 0 Options --------- Layout 1 ASCII 0 Keyboard 0 Movement Mouse Keybinds 0 Fullscreen 1 Font 24/Smallcaps Map View 50x35 Zoom Use 0% Tactical HUD 1 Map Filters NONE Filters NONE Steam 1 RUN: 7a8d1cd7-1a8f-41c9-b179-8f0026f2f5de